{"text_format":"1","workbook":"xlsx","n_sheets":7,"sheets":["Blad1","totaal score","score min 1 wedstrijd","eerste wedstrijd","tweede wedstrijd","derde wedstrijd","vierde wedstrijd"],"not_rendered":{"charts":0,"images":0,"macros":1,"external_links":0,"defined_names":1,"comments":0,"pivot_tables":0},"unopened":[],"bounds":{"document_bytes":16777216,"sheet_cells":100000,"rows_first":2000,"rows_last":500,"rows_between":2000,"halvings":0,"cell_chars":16384,"cell_head_chars":4096},"cells_cut":0,"cells_raw":0,"read":"whole","date_system":"1900"}

{"sheet":"Blad1","index":0,"n_rows":20,"n_cols":4,"rows_kept":20,"cut":false,"hidden":false,"merged":[]}
[1,"H. v d Akker",null,11]
[2,"B. Bots",null,9]
[3,"J. v Haaren",11,3]
[4,"H. v Helmond",10,4]
[5,"T. Hoefnagels",5,15]
[6,"M. Hoskins",4,16]
[7,"M. v Lierop",17,7]
[8,"P. Lintermans"]
[9,"W. Seijkens"]
[10,"H. Verbaarschot",14,10]
[11,"J. Verwei",15,8]
[12,"T. Mastbroek",13,17]
[13,null,6,1]
[14,null,8,13]
[15,null,9,14]
[16,null,3,5]
[17,null,1,6]
[18,null,16,18]
[19]
[20]

{"sheet":"totaal score","index":1,"n_rows":18,"n_cols":12,"rows_kept":18,"cut":false,"hidden":false,"merged":[[0,2,0,8]]}
[null,null,"Voorjaarswedstrijd 2024"]
["Plaats","Naam","Punten","Gewicht","Punten","Gewicht","Punten","Gewicht","Punten","Gewicht","Totaal punten","Totaal gewicht"]
[1,"M. Hoskins",{"$f":"IF(ISERROR(VLOOKUP(B3,'eerste wedstrijd'!B:E,3,FALSE)=0),\"\",VLOOKUP(B3,'eerste wedstrijd'!B:E,3,FALSE))","v":2},{"$f":"IF(ISERROR(VLOOKUP(B3,'eerste wedstrijd'!B:E,2,FALSE)=0),\"\",VLOOKUP(B3,'eerste wedstrijd'!B:E,2,FALSE))","v":3720},{"$f":"IF(ISERROR(VLOOKUP(B3,'tweede wedstrijd'!B:D,3,FALSE)=0),\"\",VLOOKUP(B3,'tweede wedstrijd'!B:D,3,FALSE))","v":2},{"$f":"IF(ISERROR(VLOOKUP(B3,'tweede wedstrijd'!B:C,2,FALSE)=0),\"\",VLOOKUP(B3,'tweede wedstrijd'!B:C,2,FALSE))","v":15000},{"$f":"IF(ISERROR(VLOOKUP(B3,'derde wedstrijd'!B:E,3,FALSE)=0),\"\",VLOOKUP(B3,'derde wedstrijd'!B:E,3,FALSE))","v":0},{"$f":"IF(ISERROR(VLOOKUP(B3,'derde wedstrijd'!B:C,2,FALSE)=0),\"\",VLOOKUP(B3,'derde wedstrijd'!B:C,2,FALSE))","v":0},{"$f":"IF(ISERROR(VLOOKUP(B3,'vierde wedstrijd'!B:E,3,FALSE)=0),\"\",VLOOKUP(B3,'vierde wedstrijd'!B:E,3,FALSE))","v":0},{"$f":"IF(ISERROR(VLOOKUP(B3,'vierde wedstrijd'!B:C,2,FALSE)=0),\"\",VLOOKUP(B3,'vierde wedstrijd'!B:C,2,FALSE))","v":0},{"$f":"SUM(C3,E3,G3,I3)","v":4},{"$f":"SUM(D3,F3,H3,J3)","v":18720}]
[2,"P. Lintermans",{"$f":"IF(ISERROR(VLOOKUP(B4,'eerste wedstrijd'!B:E,3,FALSE)=0),\"\",VLOOKUP(B4,'eerste wedstrijd'!B:E,3,FALSE))","v":1},{"$f":"IF(ISERROR(VLOOKUP(B4,'eerste wedstrijd'!B:E,2,FALSE)=0),\"\",VLOOKUP(B4,'eerste wedstrijd'!B:E,2,FALSE))","v":10600},{"$f":"IF(ISERROR(VLOOKUP(B4,'tweede wedstrijd'!B:D,3,FALSE)=0),\"\",VLOOKUP(B4,'tweede wedstrijd'!B:D,3,FALSE))","v":4},{"$f":"IF(ISERROR(VLOOKUP(B4,'tweede wedstrijd'!B:C,2,FALSE)=0),\"\",VLOOKUP(B4,'tweede wedstrijd'!B:C,2,FALSE))","v":12780},{"$f":"IF(ISERROR(VLOOKUP(B4,'derde wedstrijd'!B:E,3,FALSE)=0),\"\",VLOOKUP(B4,'derde wedstrijd'!B:E,3,FALSE))","v":0},{"$f":"IF(ISERROR(VLOOKUP(B4,'derde wedstrijd'!B:C,2,FALSE)=0),\"\",VLOOKUP(B4,'derde wedstrijd'!B:C,2,FALSE))","v":0},{"$f":"IF(ISERROR(VLOOKUP(B4,'vierde wedstrijd'!B:E,3,FALSE)=0),\"\",VLOOKUP(B4,'vierde wedstrijd'!B:E,3,FALSE))","v":0},{"$f":"IF(ISERROR(VLOOKUP(B4,'vierde wedstrijd'!B:C,2,FALSE)=0),\"\",VLOOKUP(B4,'vierde wedstrijd'!B:C,2,FALSE))","v":0},{"$f":"SUM(C4,E4,G4,I4)","v":5},{"$f":"SUM(D4,F4,H4,J4)","v":23380}]
[3,"T. Mastbroek",{"$f":"IF(ISERROR(VLOOKUP(B5,'eerste wedstrijd'!B:E,3,FALSE)=0),\"\",VLOOKUP(B5,'eerste wedstrijd'!B:E,3,FALSE))","v":4},{"$f":"IF(ISERROR(VLOOKUP(B5,'eerste wedstrijd'!B:E,2,FALSE)=0),\"\",VLOOKUP(B5,'eerste wedstrijd'!B:E,2,FALSE))","v":2125},{"$f":"IF(ISERROR(VLOOKUP(B5,'tweede wedstrijd'!B:D,3,FALSE)=0),\"\",VLOOKUP(B5,'tweede wedstrijd'!B:D,3,FALSE))","v":3},{"$f":"IF(ISERROR(VLOOKUP(B5,'tweede wedstrijd'!B:C,2,FALSE)=0),\"\",VLOOKUP(B5,'tweede wedstrijd'!B:C,2,FALSE))","v":13090},{"$f":"IF(ISERROR(VLOOKUP(B5,'derde wedstrijd'!B:E,3,FALSE)=0),\"\",VLOOKUP(B5,'derde wedstrijd'!B:E,3,FALSE))","v":0},{"$f":"IF(ISERROR(VLOOKUP(B5,'derde wedstrijd'!B:C,2,FALSE)=0),\"\",VLOOKUP(B5,'derde wedstrijd'!B:C,2,FALSE))","v":0},{"$f":"IF(ISERROR(VLOOKUP(B5,'vierde wedstrijd'!B:E,3,FALSE)=0),\"\",VLOOKUP(B5,'vierde wedstrijd'!B:E,3,FALSE))","v":0},{"$f":"IF(ISERROR(VLOOKUP(B5,'vierde wedstrijd'!B:C,2,FALSE)=0),\"\",VLOOKUP(B5,'vierde wedstrijd'!B:C,2,FALSE))","v":0},{"$f":"SUM(C5,E5,G5,I5)","v":7},{"$f":"SUM(D5,F5,H5,J5)","v":15215}]
[4,"H. v d Akker",{"$f":"IF(ISERROR(VLOOKUP(B6,'eerste wedstrijd'!B:E,3,FALSE)=0),\"\",VLOOKUP(B6,'eerste wedstrijd'!B:E,3,FALSE))","v":7},{"$f":"IF(ISERROR(VLOOKUP(B6,'eerste wedstrijd'!B:E,2,FALSE)=0),\"\",VLOOKUP(B6,'eerste wedstrijd'!B:E,2,FALSE))","v":135},{"$f":"IF(ISERROR(VLOOKUP(B6,'tweede wedstrijd'!B:D,3,FALSE)=0),\"\",VLOOKUP(B6,'tweede wedstrijd'!B:D,3,FALSE))","v":1},{"$f":"IF(ISERROR(VLOOKUP(B6,'tweede wedstrijd'!B:C,2,FALSE)=0),\"\",VLOOKUP(B6,'tweede wedstrijd'!B:C,2,FALSE))","v":21210},{"$f":"IF(ISERROR(VLOOKUP(B6,'derde wedstrijd'!B:E,3,FALSE)=0),\"\",VLOOKUP(B6,'derde wedstrijd'!B:E,3,FALSE))","v":0},{"$f":"IF(ISERROR(VLOOKUP(B6,'derde wedstrijd'!B:C,2,FALSE)=0),\"\",VLOOKUP(B6,'derde wedstrijd'!B:C,2,FALSE))","v":0},{"$f":"IF(ISERROR(VLOOKUP(B6,'vierde wedstrijd'!B:E,3,FALSE)=0),\"\",VLOOKUP(B6,'vierde wedstrijd'!B:E,3,FALSE))","v":0},{"$f":"IF(ISERROR(VLOOKUP(B6,'vierde wedstrijd'!B:C,2,FALSE)=0),\"\",VLOOKUP(B6,'vierde wedstrijd'!B:C,2,FALSE))","v":0},{"$f":"SUM(C6,E6,G6,I6)","v":8},{"$f":"SUM(D6,F6,H6,J6)","v":21345}]
[5,"H. v Helmond",{"$f":"IF(ISERROR(VLOOKUP(B7,'eerste wedstrijd'!B:E,3,FALSE)=0),\"\",VLOOKUP(B7,'eerste wedstrijd'!B:E,3,FALSE))","v":3},{"$f":"IF(ISERROR(VLOOKUP(B7,'eerste wedstrijd'!B:E,2,FALSE)=0),\"\",VLOOKUP(B7,'eerste wedstrijd'!B:E,2,FALSE))","v":2965},{"$f":"IF(ISERROR(VLOOKUP(B7,'tweede wedstrijd'!B:D,3,FALSE)=0),\"\",VLOOKUP(B7,'tweede wedstrijd'!B:D,3,FALSE))","v":5.5},{"$f":"IF(ISERROR(VLOOKUP(B7,'tweede wedstrijd'!B:C,2,FALSE)=0),\"\",VLOOKUP(B7,'tweede wedstrijd'!B:C,2,FALSE))","v":7225},{"$f":"IF(ISERROR(VLOOKUP(B7,'derde wedstrijd'!B:E,3,FALSE)=0),\"\",VLOOKUP(B7,'derde wedstrijd'!B:E,3,FALSE))","v":0},{"$f":"IF(ISERROR(VLOOKUP(B7,'derde wedstrijd'!B:C,2,FALSE)=0),\"\",VLOOKUP(B7,'derde wedstrijd'!B:C,2,FALSE))","v":0},{"$f":"IF(ISERROR(VLOOKUP(B7,'vierde wedstrijd'!B:E,3,FALSE)=0),\"\",VLOOKUP(B7,'vierde wedstrijd'!B:E,3,FALSE))","v":0},{"$f":"IF(ISERROR(VLOOKUP(B7,'vierde wedstrijd'!B:C,2,FALSE)=0),\"\",VLOOKUP(B7,'vierde wedstrijd'!B:C,2,FALSE))","v":0},{"$f":"SUM(C7,E7,G7,I7)","v":8.5},{"$f":"SUM(D7,F7,H7,J7)","v":10190}]
[6,"J. v Haaren",{"$f":"IF(ISERROR(VLOOKUP(B8,'eerste wedstrijd'!B:E,3,FALSE)=0),\"\",VLOOKUP(B8,'eerste wedstrijd'!B:E,3,FALSE))","v":5.5},{"$f":"IF(ISERROR(VLOOKUP(B8,'eerste wedstrijd'!B:E,2,FALSE)=0),\"\",VLOOKUP(B8,'eerste wedstrijd'!B:E,2,FALSE))","v":1280},{"$f":"IF(ISERROR(VLOOKUP(B8,'tweede wedstrijd'!B:D,3,FALSE)=0),\"\",VLOOKUP(B8,'tweede wedstrijd'!B:D,3,FALSE))","v":5},{"$f":"IF(ISERROR(VLOOKUP(B8,'tweede wedstrijd'!B:C,2,FALSE)=0),\"\",VLOOKUP(B8,'tweede wedstrijd'!B:C,2,FALSE))","v":7915},{"$f":"IF(ISERROR(VLOOKUP(B8,'derde wedstrijd'!B:E,3,FALSE)=0),\"\",VLOOKUP(B8,'derde wedstrijd'!B:E,3,FALSE))","v":0},{"$f":"IF(ISERROR(VLOOKUP(B8,'derde wedstrijd'!B:C,2,FALSE)=0),\"\",VLOOKUP(B8,'derde wedstrijd'!B:C,2,FALSE))","v":0},{"$f":"IF(ISERROR(VLOOKUP(B8,'vierde wedstrijd'!B:E,3,FALSE)=0),\"\",VLOOKUP(B8,'vierde wedstrijd'!B:E,3,FALSE))","v":0},{"$f":"IF(ISERROR(VLOOKUP(B8,'vierde wedstrijd'!B:C,2,FALSE)=0),\"\",VLOOKUP(B8,'vierde wedstrijd'!B:C,2,FALSE))","v":0},{"$f":"SUM(C8,E8,G8,I8)","v":10.5},{"$f":"SUM(D8,F8,H8,J8)","v":9195}]
[7,"M. v Lierop",{"$f":"IF(ISERROR(VLOOKUP(B9,'eerste wedstrijd'!B:E,3,FALSE)=0),\"\",VLOOKUP(B9,'eerste wedstrijd'!B:E,3,FALSE))","v":5},{"$f":"IF(ISERROR(VLOOKUP(B9,'eerste wedstrijd'!B:E,2,FALSE)=0),\"\",VLOOKUP(B9,'eerste wedstrijd'!B:E,2,FALSE))","v":1395},{"$f":"IF(ISERROR(VLOOKUP(B9,'tweede wedstrijd'!B:D,3,FALSE)=0),\"\",VLOOKUP(B9,'tweede wedstrijd'!B:D,3,FALSE))","v":6},{"$f":"IF(ISERROR(VLOOKUP(B9,'tweede wedstrijd'!B:C,2,FALSE)=0),\"\",VLOOKUP(B9,'tweede wedstrijd'!B:C,2,FALSE))","v":4710},{"$f":"IF(ISERROR(VLOOKUP(B9,'derde wedstrijd'!B:E,3,FALSE)=0),\"\",VLOOKUP(B9,'derde wedstrijd'!B:E,3,FALSE))","v":0},{"$f":"IF(ISERROR(VLOOKUP(B9,'derde wedstrijd'!B:C,2,FALSE)=0),\"\",VLOOKUP(B9,'derde wedstrijd'!B:C,2,FALSE))","v":0},{"$f":"IF(ISERROR(VLOOKUP(B9,'vierde wedstrijd'!B:E,3,FALSE)=0),\"\",VLOOKUP(B9,'vierde wedstrijd'!B:E,3,FALSE))","v":0},{"$f":"IF(ISERROR(VLOOKUP(B9,'vierde wedstrijd'!B:C,2,FALSE)=0),\"\",VLOOKUP(B9,'vierde wedstrijd'!B:C,2,FALSE))","v":0},{"$f":"SUM(C9,E9,G9,I9)","v":11},{"$f":"SUM(D9,F9,H9,J9)","v":6105}]
[8,"T. Hoefnagels",{"$f":"IF(ISERROR(VLOOKUP(B10,'eerste wedstrijd'!B:E,3,FALSE)=0),\"\",VLOOKUP(B10,'eerste wedstrijd'!B:E,3,FALSE))","v":6.5},{"$f":"IF(ISERROR(VLOOKUP(B10,'eerste wedstrijd'!B:E,2,FALSE)=0),\"\",VLOOKUP(B10,'eerste wedstrijd'!B:E,2,FALSE))","v":815},{"$f":"IF(ISERROR(VLOOKUP(B10,'tweede wedstrijd'!B:D,3,FALSE)=0),\"\",VLOOKUP(B10,'tweede wedstrijd'!B:D,3,FALSE))","v":6.5},{"$f":"IF(ISERROR(VLOOKUP(B10,'tweede wedstrijd'!B:C,2,FALSE)=0),\"\",VLOOKUP(B10,'tweede wedstrijd'!B:C,2,FALSE))","v":4080},{"$f":"IF(ISERROR(VLOOKUP(B10,'derde wedstrijd'!B:E,3,FALSE)=0),\"\",VLOOKUP(B10,'derde wedstrijd'!B:E,3,FALSE))","v":0},{"$f":"IF(ISERROR(VLOOKUP(B10,'derde wedstrijd'!B:C,2,FALSE)=0),\"\",VLOOKUP(B10,'derde wedstrijd'!B:C,2,FALSE))","v":0},{"$f":"IF(ISERROR(VLOOKUP(B10,'vierde wedstrijd'!B:E,3,FALSE)=0),\"\",VLOOKUP(B10,'vierde wedstrijd'!B:E,3,FALSE))","v":0},{"$f":"IF(ISERROR(VLOOKUP(B10,'vierde wedstrijd'!B:C,2,FALSE)=0),\"\",VLOOKUP(B10,'vierde wedstrijd'!B:C,2,FALSE))","v":0},{"$f":"SUM(C10,E10,G10,I10)","v":13},{"$f":"SUM(D10,F10,H10,J10)","v":4895}]
[9,"B. Bots",{"$f":"IF(ISERROR(VLOOKUP(B11,'eerste wedstrijd'!B:E,3,FALSE)=0),\"\",VLOOKUP(B11,'eerste wedstrijd'!B:E,3,FALSE))","v":7},{"$f":"IF(ISERROR(VLOOKUP(B11,'eerste wedstrijd'!B:E,2,FALSE)=0),\"\",VLOOKUP(B11,'eerste wedstrijd'!B:E,2,FALSE))","v":135},{"$f":"IF(ISERROR(VLOOKUP(B11,'tweede wedstrijd'!B:D,3,FALSE)=0),\"\",VLOOKUP(B11,'tweede wedstrijd'!B:D,3,FALSE))","v":7},{"$f":"IF(ISERROR(VLOOKUP(B11,'tweede wedstrijd'!B:C,2,FALSE)=0),\"\",VLOOKUP(B11,'tweede wedstrijd'!B:C,2,FALSE))","v":3165},{"$f":"IF(ISERROR(VLOOKUP(B11,'derde wedstrijd'!B:E,3,FALSE)=0),\"\",VLOOKUP(B11,'derde wedstrijd'!B:E,3,FALSE))","v":0},{"$f":"IF(ISERROR(VLOOKUP(B11,'derde wedstrijd'!B:C,2,FALSE)=0),\"\",VLOOKUP(B11,'derde wedstrijd'!B:C,2,FALSE))","v":0},{"$f":"IF(ISERROR(VLOOKUP(B11,'vierde wedstrijd'!B:E,3,FALSE)=0),\"\",VLOOKUP(B11,'vierde wedstrijd'!B:E,3,FALSE))","v":0},{"$f":"IF(ISERROR(VLOOKUP(B11,'vierde wedstrijd'!B:C,2,FALSE)=0),\"\",VLOOKUP(B11,'vierde wedstrijd'!B:C,2,FALSE))","v":0},{"$f":"SUM(C11,E11,G11,I11)","v":14},{"$f":"SUM(D11,F11,H11,J11)","v":3300}]
[10,"W. Seijkens",{"$f":"IF(ISERROR(VLOOKUP(B12,'eerste wedstrijd'!B:E,3,FALSE)=0),\"\",VLOOKUP(B12,'eerste wedstrijd'!B:E,3,FALSE))","v":6},{"$f":"IF(ISERROR(VLOOKUP(B12,'eerste wedstrijd'!B:E,2,FALSE)=0),\"\",VLOOKUP(B12,'eerste wedstrijd'!B:E,2,FALSE))","v":1205},{"$f":"IF(ISERROR(VLOOKUP(B12,'tweede wedstrijd'!B:D,3,FALSE)=0),\"\",VLOOKUP(B12,'tweede wedstrijd'!B:D,3,FALSE))","v":9},{"$f":"IF(ISERROR(VLOOKUP(B12,'tweede wedstrijd'!B:C,2,FALSE)=0),\"\",VLOOKUP(B12,'tweede wedstrijd'!B:C,2,FALSE))","v":0},{"$f":"IF(ISERROR(VLOOKUP(B12,'derde wedstrijd'!B:E,3,FALSE)=0),\"\",VLOOKUP(B12,'derde wedstrijd'!B:E,3,FALSE))","v":0},{"$f":"IF(ISERROR(VLOOKUP(B12,'derde wedstrijd'!B:C,2,FALSE)=0),\"\",VLOOKUP(B12,'derde wedstrijd'!B:C,2,FALSE))","v":0},{"$f":"IF(ISERROR(VLOOKUP(B12,'vierde wedstrijd'!B:E,3,FALSE)=0),\"\",VLOOKUP(B12,'vierde wedstrijd'!B:E,3,FALSE))","v":0},{"$f":"IF(ISERROR(VLOOKUP(B12,'vierde wedstrijd'!B:C,2,FALSE)=0),\"\",VLOOKUP(B12,'vierde wedstrijd'!B:C,2,FALSE))","v":0},{"$f":"SUM(C12,E12,G12,I12)","v":15},{"$f":"SUM(D12,F12,H12,J12)","v":1205}]
[11,"H. Verbaarschot",{"$f":"IF(ISERROR(VLOOKUP(B13,'eerste wedstrijd'!B:E,3,FALSE)=0),\"\",VLOOKUP(B13,'eerste wedstrijd'!B:E,3,FALSE))","v":8},{"$f":"IF(ISERROR(VLOOKUP(B13,'eerste wedstrijd'!B:E,2,FALSE)=0),\"\",VLOOKUP(B13,'eerste wedstrijd'!B:E,2,FALSE))","v":115},{"$f":"IF(ISERROR(VLOOKUP(B13,'tweede wedstrijd'!B:D,3,FALSE)=0),\"\",VLOOKUP(B13,'tweede wedstrijd'!B:D,3,FALSE))","v":7.5},{"$f":"IF(ISERROR(VLOOKUP(B13,'tweede wedstrijd'!B:C,2,FALSE)=0),\"\",VLOOKUP(B13,'tweede wedstrijd'!B:C,2,FALSE))","v":2835},{"$f":"IF(ISERROR(VLOOKUP(B13,'derde wedstrijd'!B:E,3,FALSE)=0),\"\",VLOOKUP(B13,'derde wedstrijd'!B:E,3,FALSE))","v":0},{"$f":"IF(ISERROR(VLOOKUP(B13,'derde wedstrijd'!B:C,2,FALSE)=0),\"\",VLOOKUP(B13,'derde wedstrijd'!B:C,2,FALSE))","v":0},{"$f":"IF(ISERROR(VLOOKUP(B13,'vierde wedstrijd'!B:E,3,FALSE)=0),\"\",VLOOKUP(B13,'vierde wedstrijd'!B:E,3,FALSE))","v":0},{"$f":"IF(ISERROR(VLOOKUP(B13,'vierde wedstrijd'!B:C,2,FALSE)=0),\"\",VLOOKUP(B13,'vierde wedstrijd'!B:C,2,FALSE))","v":0},{"$f":"SUM(C13,E13,G13,I13)","v":15.5},{"$f":"SUM(D13,F13,H13,J13)","v":2950}]
[12,null,{"$f":"IF(ISERROR(VLOOKUP(B14,'eerste wedstrijd'!B:E,3,FALSE)=0),\"\",VLOOKUP(B14,'eerste wedstrijd'!B:E,3,FALSE))","v":""},{"$f":"IF(ISERROR(VLOOKUP(B14,'eerste wedstrijd'!B:E,2,FALSE)=0),\"\",VLOOKUP(B14,'eerste wedstrijd'!B:E,2,FALSE))","v":""},{"$f":"IF(ISERROR(VLOOKUP(B14,'tweede wedstrijd'!B:D,3,FALSE)=0),\"\",VLOOKUP(B14,'tweede wedstrijd'!B:D,3,FALSE))","v":""},{"$f":"IF(ISERROR(VLOOKUP(B14,'tweede wedstrijd'!B:C,2,FALSE)=0),\"\",VLOOKUP(B14,'tweede wedstrijd'!B:C,2,FALSE))","v":""},{"$f":"IF(ISERROR(VLOOKUP(B14,'derde wedstrijd'!B:E,3,FALSE)=0),\"\",VLOOKUP(B14,'derde wedstrijd'!B:E,3,FALSE))","v":""},{"$f":"IF(ISERROR(VLOOKUP(B14,'derde wedstrijd'!B:C,2,FALSE)=0),\"\",VLOOKUP(B14,'derde wedstrijd'!B:C,2,FALSE))","v":""},{"$f":"IF(ISERROR(VLOOKUP(B14,'vierde wedstrijd'!B:E,3,FALSE)=0),\"\",VLOOKUP(B14,'vierde wedstrijd'!B:E,3,FALSE))","v":""},{"$f":"IF(ISERROR(VLOOKUP(B14,'vierde wedstrijd'!B:C,2,FALSE)=0),\"\",VLOOKUP(B14,'vierde wedstrijd'!B:C,2,FALSE))","v":""}]
[13,null,{"$f":"IF(ISERROR(VLOOKUP(B15,'eerste wedstrijd'!B:E,3,FALSE)=0),\"\",VLOOKUP(B15,'eerste wedstrijd'!B:E,3,FALSE))","v":""},{"$f":"IF(ISERROR(VLOOKUP(B15,'eerste wedstrijd'!B:E,2,FALSE)=0),\"\",VLOOKUP(B15,'eerste wedstrijd'!B:E,2,FALSE))","v":""},{"$f":"IF(ISERROR(VLOOKUP(B15,'tweede wedstrijd'!B:D,3,FALSE)=0),\"\",VLOOKUP(B15,'tweede wedstrijd'!B:D,3,FALSE))","v":""},{"$f":"IF(ISERROR(VLOOKUP(B15,'tweede wedstrijd'!B:C,2,FALSE)=0),\"\",VLOOKUP(B15,'tweede wedstrijd'!B:C,2,FALSE))","v":""},{"$f":"IF(ISERROR(VLOOKUP(B15,'derde wedstrijd'!B:E,3,FALSE)=0),\"\",VLOOKUP(B15,'derde wedstrijd'!B:E,3,FALSE))","v":""},{"$f":"IF(ISERROR(VLOOKUP(B15,'derde wedstrijd'!B:C,2,FALSE)=0),\"\",VLOOKUP(B15,'derde wedstrijd'!B:C,2,FALSE))","v":""},{"$f":"IF(ISERROR(VLOOKUP(B15,'vierde wedstrijd'!B:E,3,FALSE)=0),\"\",VLOOKUP(B15,'vierde wedstrijd'!B:E,3,FALSE))","v":""},{"$f":"IF(ISERROR(VLOOKUP(B15,'vierde wedstrijd'!B:C,2,FALSE)=0),\"\",VLOOKUP(B15,'vierde wedstrijd'!B:C,2,FALSE))","v":""}]
[14,null,{"$f":"IF(ISERROR(VLOOKUP(B16,'eerste wedstrijd'!B:E,3,FALSE)=0),\"\",VLOOKUP(B16,'eerste wedstrijd'!B:E,3,FALSE))","v":""},{"$f":"IF(ISERROR(VLOOKUP(B16,'eerste wedstrijd'!B:E,2,FALSE)=0),\"\",VLOOKUP(B16,'eerste wedstrijd'!B:E,2,FALSE))","v":""},{"$f":"IF(ISERROR(VLOOKUP(B16,'tweede wedstrijd'!B:D,3,FALSE)=0),\"\",VLOOKUP(B16,'tweede wedstrijd'!B:D,3,FALSE))","v":""},{"$f":"IF(ISERROR(VLOOKUP(B16,'tweede wedstrijd'!B:C,2,FALSE)=0),\"\",VLOOKUP(B16,'tweede wedstrijd'!B:C,2,FALSE))","v":""},{"$f":"IF(ISERROR(VLOOKUP(B16,'derde wedstrijd'!B:E,3,FALSE)=0),\"\",VLOOKUP(B16,'derde wedstrijd'!B:E,3,FALSE))","v":""},{"$f":"IF(ISERROR(VLOOKUP(B16,'derde wedstrijd'!B:C,2,FALSE)=0),\"\",VLOOKUP(B16,'derde wedstrijd'!B:C,2,FALSE))","v":""},{"$f":"IF(ISERROR(VLOOKUP(B16,'vierde wedstrijd'!B:E,3,FALSE)=0),\"\",VLOOKUP(B16,'vierde wedstrijd'!B:E,3,FALSE))","v":""},{"$f":"IF(ISERROR(VLOOKUP(B16,'vierde wedstrijd'!B:C,2,FALSE)=0),\"\",VLOOKUP(B16,'vierde wedstrijd'!B:C,2,FALSE))","v":""}]
[15,null,{"$f":"IF(ISERROR(VLOOKUP(B17,'eerste wedstrijd'!B:E,3,FALSE)=0),\"\",VLOOKUP(B17,'eerste wedstrijd'!B:E,3,FALSE))","v":""},{"$f":"IF(ISERROR(VLOOKUP(B17,'eerste wedstrijd'!B:E,2,FALSE)=0),\"\",VLOOKUP(B17,'eerste wedstrijd'!B:E,2,FALSE))","v":""},{"$f":"IF(ISERROR(VLOOKUP(B17,'tweede wedstrijd'!B:D,3,FALSE)=0),\"\",VLOOKUP(B17,'tweede wedstrijd'!B:D,3,FALSE))","v":""},{"$f":"IF(ISERROR(VLOOKUP(B17,'tweede wedstrijd'!B:C,2,FALSE)=0),\"\",VLOOKUP(B17,'tweede wedstrijd'!B:C,2,FALSE))","v":""},{"$f":"IF(ISERROR(VLOOKUP(B17,'derde wedstrijd'!B:E,3,FALSE)=0),\"\",VLOOKUP(B17,'derde wedstrijd'!B:E,3,FALSE))","v":""},{"$f":"IF(ISERROR(VLOOKUP(B17,'derde wedstrijd'!B:C,2,FALSE)=0),\"\",VLOOKUP(B17,'derde wedstrijd'!B:C,2,FALSE))","v":""},{"$f":"IF(ISERROR(VLOOKUP(B17,'vierde wedstrijd'!B:E,3,FALSE)=0),\"\",VLOOKUP(B17,'vierde wedstrijd'!B:E,3,FALSE))","v":""},{"$f":"IF(ISERROR(VLOOKUP(B17,'vierde wedstrijd'!B:C,2,FALSE)=0),\"\",VLOOKUP(B17,'vierde wedstrijd'!B:C,2,FALSE))","v":""}]
[16,null,{"$f":"IF(ISERROR(VLOOKUP(B18,'eerste wedstrijd'!B:E,3,FALSE)=0),\"\",VLOOKUP(B18,'eerste wedstrijd'!B:E,3,FALSE))","v":""},{"$f":"IF(ISERROR(VLOOKUP(B18,'eerste wedstrijd'!B:E,2,FALSE)=0),\"\",VLOOKUP(B18,'eerste wedstrijd'!B:E,2,FALSE))","v":""},{"$f":"IF(ISERROR(VLOOKUP(B18,'tweede wedstrijd'!B:D,3,FALSE)=0),\"\",VLOOKUP(B18,'tweede wedstrijd'!B:D,3,FALSE))","v":""},{"$f":"IF(ISERROR(VLOOKUP(B18,'tweede wedstrijd'!B:C,2,FALSE)=0),\"\",VLOOKUP(B18,'tweede wedstrijd'!B:C,2,FALSE))","v":""},{"$f":"IF(ISERROR(VLOOKUP(B18,'derde wedstrijd'!B:E,3,FALSE)=0),\"\",VLOOKUP(B18,'derde wedstrijd'!B:E,3,FALSE))","v":""},{"$f":"IF(ISERROR(VLOOKUP(B18,'derde wedstrijd'!B:C,2,FALSE)=0),\"\",VLOOKUP(B18,'derde wedstrijd'!B:C,2,FALSE))","v":""},{"$f":"IF(ISERROR(VLOOKUP(B18,'vierde wedstrijd'!B:E,3,FALSE)=0),\"\",VLOOKUP(B18,'vierde wedstrijd'!B:E,3,FALSE))","v":""},{"$f":"IF(ISERROR(VLOOKUP(B18,'vierde wedstrijd'!B:C,2,FALSE)=0),\"\",VLOOKUP(B18,'vierde wedstrijd'!B:C,2,FALSE))","v":""}]

{"sheet":"score min 1 wedstrijd","index":2,"n_rows":18,"n_cols":12,"rows_kept":18,"cut":false,"hidden":false,"merged":[[0,2,0,8]]}
[null,null,"Voorjaarswedstrijd 2024"]
["Plaats","Naam","Punten","Gewicht","Punten","Gewicht","Punten","Gewicht","Punten","Gewicht","Totaal punten","Totaal gewicht"]
[1,"P. Lintermans",{"$f":"IF(ISERROR(VLOOKUP(B3,'eerste wedstrijd'!B:E,3,FALSE)=0),\"\",VLOOKUP(B3,'eerste wedstrijd'!B:E,3,FALSE))","v":1},{"$f":"IF(ISERROR(VLOOKUP(B3,'eerste wedstrijd'!B:E,2,FALSE)=0),\"\",VLOOKUP(B3,'eerste wedstrijd'!B:E,2,FALSE))","v":10600},{"$f":"IF(ISERROR(VLOOKUP(B3,'tweede wedstrijd'!B:D,3,FALSE)=0),\"\",VLOOKUP(B3,'tweede wedstrijd'!B:D,3,FALSE))","v":4},{"$f":"IF(ISERROR(VLOOKUP(B3,'tweede wedstrijd'!B:C,2,FALSE)=0),\"\",VLOOKUP(B3,'tweede wedstrijd'!B:C,2,FALSE))","v":12780},{"$f":"IF(ISERROR(VLOOKUP(B3,'derde wedstrijd'!B:E,3,FALSE)=0),\"\",VLOOKUP(B3,'derde wedstrijd'!B:E,3,FALSE))","v":0},{"$f":"IF(ISERROR(VLOOKUP(B3,'derde wedstrijd'!B:C,2,FALSE)=0),\"\",VLOOKUP(B3,'derde wedstrijd'!B:C,2,FALSE))","v":0},{"$f":"IF(ISERROR(VLOOKUP(B3,'vierde wedstrijd'!B:E,3,FALSE)=0),\"\",VLOOKUP(B3,'vierde wedstrijd'!B:E,3,FALSE))","v":0},{"$f":"IF(ISERROR(VLOOKUP(B3,'vierde wedstrijd'!B:C,2,FALSE)=0),\"\",VLOOKUP(B3,'vierde wedstrijd'!B:C,2,FALSE))","v":0},{"$f":"SUM(C3,E3,G3,I3)","v":5},{"$f":"SUM(D3,F3,H3,J3)","v":23380}]
[2,"M. Hoskins",{"$f":"IF(ISERROR(VLOOKUP(B4,'eerste wedstrijd'!B:E,3,FALSE)=0),\"\",VLOOKUP(B4,'eerste wedstrijd'!B:E,3,FALSE))","v":2},{"$f":"IF(ISERROR(VLOOKUP(B4,'eerste wedstrijd'!B:E,2,FALSE)=0),\"\",VLOOKUP(B4,'eerste wedstrijd'!B:E,2,FALSE))","v":3720},{"$f":"IF(ISERROR(VLOOKUP(B4,'tweede wedstrijd'!B:D,3,FALSE)=0),\"\",VLOOKUP(B4,'tweede wedstrijd'!B:D,3,FALSE))","v":2},{"$f":"IF(ISERROR(VLOOKUP(B4,'tweede wedstrijd'!B:C,2,FALSE)=0),\"\",VLOOKUP(B4,'tweede wedstrijd'!B:C,2,FALSE))","v":15000},{"$f":"IF(ISERROR(VLOOKUP(B4,'derde wedstrijd'!B:E,3,FALSE)=0),\"\",VLOOKUP(B4,'derde wedstrijd'!B:E,3,FALSE))","v":0},{"$f":"IF(ISERROR(VLOOKUP(B4,'derde wedstrijd'!B:C,2,FALSE)=0),\"\",VLOOKUP(B4,'derde wedstrijd'!B:C,2,FALSE))","v":0},{"$f":"IF(ISERROR(VLOOKUP(B4,'vierde wedstrijd'!B:E,3,FALSE)=0),\"\",VLOOKUP(B4,'vierde wedstrijd'!B:E,3,FALSE))","v":0},{"$f":"IF(ISERROR(VLOOKUP(B4,'vierde wedstrijd'!B:C,2,FALSE)=0),\"\",VLOOKUP(B4,'vierde wedstrijd'!B:C,2,FALSE))","v":0},4,18720]
[3,"H. v Helmond",{"$f":"IF(ISERROR(VLOOKUP(B5,'eerste wedstrijd'!B:E,3,FALSE)=0),\"\",VLOOKUP(B5,'eerste wedstrijd'!B:E,3,FALSE))","v":3},{"$f":"IF(ISERROR(VLOOKUP(B5,'eerste wedstrijd'!B:E,2,FALSE)=0),\"\",VLOOKUP(B5,'eerste wedstrijd'!B:E,2,FALSE))","v":2965},{"$f":"IF(ISERROR(VLOOKUP(B5,'tweede wedstrijd'!B:D,3,FALSE)=0),\"\",VLOOKUP(B5,'tweede wedstrijd'!B:D,3,FALSE))","v":5.5},{"$f":"IF(ISERROR(VLOOKUP(B5,'tweede wedstrijd'!B:C,2,FALSE)=0),\"\",VLOOKUP(B5,'tweede wedstrijd'!B:C,2,FALSE))","v":7225},{"$f":"IF(ISERROR(VLOOKUP(B5,'derde wedstrijd'!B:E,3,FALSE)=0),\"\",VLOOKUP(B5,'derde wedstrijd'!B:E,3,FALSE))","v":0},{"$f":"IF(ISERROR(VLOOKUP(B5,'derde wedstrijd'!B:C,2,FALSE)=0),\"\",VLOOKUP(B5,'derde wedstrijd'!B:C,2,FALSE))","v":0},{"$f":"IF(ISERROR(VLOOKUP(B5,'vierde wedstrijd'!B:E,3,FALSE)=0),\"\",VLOOKUP(B5,'vierde wedstrijd'!B:E,3,FALSE))","v":0},{"$f":"IF(ISERROR(VLOOKUP(B5,'vierde wedstrijd'!B:C,2,FALSE)=0),\"\",VLOOKUP(B5,'vierde wedstrijd'!B:C,2,FALSE))","v":0},8.5,10190]
[4,"T. Mastbroek",{"$f":"IF(ISERROR(VLOOKUP(B6,'eerste wedstrijd'!B:E,3,FALSE)=0),\"\",VLOOKUP(B6,'eerste wedstrijd'!B:E,3,FALSE))","v":4},{"$f":"IF(ISERROR(VLOOKUP(B6,'eerste wedstrijd'!B:E,2,FALSE)=0),\"\",VLOOKUP(B6,'eerste wedstrijd'!B:E,2,FALSE))","v":2125},{"$f":"IF(ISERROR(VLOOKUP(B6,'tweede wedstrijd'!B:D,3,FALSE)=0),\"\",VLOOKUP(B6,'tweede wedstrijd'!B:D,3,FALSE))","v":3},{"$f":"IF(ISERROR(VLOOKUP(B6,'tweede wedstrijd'!B:C,2,FALSE)=0),\"\",VLOOKUP(B6,'tweede wedstrijd'!B:C,2,FALSE))","v":13090},{"$f":"IF(ISERROR(VLOOKUP(B6,'derde wedstrijd'!B:E,3,FALSE)=0),\"\",VLOOKUP(B6,'derde wedstrijd'!B:E,3,FALSE))","v":0},{"$f":"IF(ISERROR(VLOOKUP(B6,'derde wedstrijd'!B:C,2,FALSE)=0),\"\",VLOOKUP(B6,'derde wedstrijd'!B:C,2,FALSE))","v":0},{"$f":"IF(ISERROR(VLOOKUP(B6,'vierde wedstrijd'!B:E,3,FALSE)=0),\"\",VLOOKUP(B6,'vierde wedstrijd'!B:E,3,FALSE))","v":0},{"$f":"IF(ISERROR(VLOOKUP(B6,'vierde wedstrijd'!B:C,2,FALSE)=0),\"\",VLOOKUP(B6,'vierde wedstrijd'!B:C,2,FALSE))","v":0},7,15215]
[5,"M. v Lierop",{"$f":"IF(ISERROR(VLOOKUP(B7,'eerste wedstrijd'!B:E,3,FALSE)=0),\"\",VLOOKUP(B7,'eerste wedstrijd'!B:E,3,FALSE))","v":5},{"$f":"IF(ISERROR(VLOOKUP(B7,'eerste wedstrijd'!B:E,2,FALSE)=0),\"\",VLOOKUP(B7,'eerste wedstrijd'!B:E,2,FALSE))","v":1395},{"$f":"IF(ISERROR(VLOOKUP(B7,'tweede wedstrijd'!B:D,3,FALSE)=0),\"\",VLOOKUP(B7,'tweede wedstrijd'!B:D,3,FALSE))","v":6},{"$f":"IF(ISERROR(VLOOKUP(B7,'tweede wedstrijd'!B:C,2,FALSE)=0),\"\",VLOOKUP(B7,'tweede wedstrijd'!B:C,2,FALSE))","v":4710},{"$f":"IF(ISERROR(VLOOKUP(B7,'derde wedstrijd'!B:E,3,FALSE)=0),\"\",VLOOKUP(B7,'derde wedstrijd'!B:E,3,FALSE))","v":0},{"$f":"IF(ISERROR(VLOOKUP(B7,'derde wedstrijd'!B:C,2,FALSE)=0),\"\",VLOOKUP(B7,'derde wedstrijd'!B:C,2,FALSE))","v":0},{"$f":"IF(ISERROR(VLOOKUP(B7,'vierde wedstrijd'!B:E,3,FALSE)=0),\"\",VLOOKUP(B7,'vierde wedstrijd'!B:E,3,FALSE))","v":0},{"$f":"IF(ISERROR(VLOOKUP(B7,'vierde wedstrijd'!B:C,2,FALSE)=0),\"\",VLOOKUP(B7,'vierde wedstrijd'!B:C,2,FALSE))","v":0},11,6105]
[6,"J. v Haaren",{"$f":"IF(ISERROR(VLOOKUP(B8,'eerste wedstrijd'!B:E,3,FALSE)=0),\"\",VLOOKUP(B8,'eerste wedstrijd'!B:E,3,FALSE))","v":5.5},{"$f":"IF(ISERROR(VLOOKUP(B8,'eerste wedstrijd'!B:E,2,FALSE)=0),\"\",VLOOKUP(B8,'eerste wedstrijd'!B:E,2,FALSE))","v":1280},{"$f":"IF(ISERROR(VLOOKUP(B8,'tweede wedstrijd'!B:D,3,FALSE)=0),\"\",VLOOKUP(B8,'tweede wedstrijd'!B:D,3,FALSE))","v":5},{"$f":"IF(ISERROR(VLOOKUP(B8,'tweede wedstrijd'!B:C,2,FALSE)=0),\"\",VLOOKUP(B8,'tweede wedstrijd'!B:C,2,FALSE))","v":7915},{"$f":"IF(ISERROR(VLOOKUP(B8,'derde wedstrijd'!B:E,3,FALSE)=0),\"\",VLOOKUP(B8,'derde wedstrijd'!B:E,3,FALSE))","v":0},{"$f":"IF(ISERROR(VLOOKUP(B8,'derde wedstrijd'!B:C,2,FALSE)=0),\"\",VLOOKUP(B8,'derde wedstrijd'!B:C,2,FALSE))","v":0},{"$f":"IF(ISERROR(VLOOKUP(B8,'vierde wedstrijd'!B:E,3,FALSE)=0),\"\",VLOOKUP(B8,'vierde wedstrijd'!B:E,3,FALSE))","v":0},{"$f":"IF(ISERROR(VLOOKUP(B8,'vierde wedstrijd'!B:C,2,FALSE)=0),\"\",VLOOKUP(B8,'vierde wedstrijd'!B:C,2,FALSE))","v":0},10.5,9195]
[7,"W. Seijkens",{"$f":"IF(ISERROR(VLOOKUP(B9,'eerste wedstrijd'!B:E,3,FALSE)=0),\"\",VLOOKUP(B9,'eerste wedstrijd'!B:E,3,FALSE))","v":6},{"$f":"IF(ISERROR(VLOOKUP(B9,'eerste wedstrijd'!B:E,2,FALSE)=0),\"\",VLOOKUP(B9,'eerste wedstrijd'!B:E,2,FALSE))","v":1205},{"$f":"IF(ISERROR(VLOOKUP(B9,'tweede wedstrijd'!B:D,3,FALSE)=0),\"\",VLOOKUP(B9,'tweede wedstrijd'!B:D,3,FALSE))","v":9},{"$f":"IF(ISERROR(VLOOKUP(B9,'tweede wedstrijd'!B:C,2,FALSE)=0),\"\",VLOOKUP(B9,'tweede wedstrijd'!B:C,2,FALSE))","v":0},{"$f":"IF(ISERROR(VLOOKUP(B9,'derde wedstrijd'!B:E,3,FALSE)=0),\"\",VLOOKUP(B9,'derde wedstrijd'!B:E,3,FALSE))","v":0},{"$f":"IF(ISERROR(VLOOKUP(B9,'derde wedstrijd'!B:C,2,FALSE)=0),\"\",VLOOKUP(B9,'derde wedstrijd'!B:C,2,FALSE))","v":0},{"$f":"IF(ISERROR(VLOOKUP(B9,'vierde wedstrijd'!B:E,3,FALSE)=0),\"\",VLOOKUP(B9,'vierde wedstrijd'!B:E,3,FALSE))","v":0},{"$f":"IF(ISERROR(VLOOKUP(B9,'vierde wedstrijd'!B:C,2,FALSE)=0),\"\",VLOOKUP(B9,'vierde wedstrijd'!B:C,2,FALSE))","v":0},15,1205]
[8,"T. Hoefnagels",{"$f":"IF(ISERROR(VLOOKUP(B10,'eerste wedstrijd'!B:E,3,FALSE)=0),\"\",VLOOKUP(B10,'eerste wedstrijd'!B:E,3,FALSE))","v":6.5},{"$f":"IF(ISERROR(VLOOKUP(B10,'eerste wedstrijd'!B:E,2,FALSE)=0),\"\",VLOOKUP(B10,'eerste wedstrijd'!B:E,2,FALSE))","v":815},{"$f":"IF(ISERROR(VLOOKUP(B10,'tweede wedstrijd'!B:D,3,FALSE)=0),\"\",VLOOKUP(B10,'tweede wedstrijd'!B:D,3,FALSE))","v":6.5},{"$f":"IF(ISERROR(VLOOKUP(B10,'tweede wedstrijd'!B:C,2,FALSE)=0),\"\",VLOOKUP(B10,'tweede wedstrijd'!B:C,2,FALSE))","v":4080},{"$f":"IF(ISERROR(VLOOKUP(B10,'derde wedstrijd'!B:E,3,FALSE)=0),\"\",VLOOKUP(B10,'derde wedstrijd'!B:E,3,FALSE))","v":0},{"$f":"IF(ISERROR(VLOOKUP(B10,'derde wedstrijd'!B:C,2,FALSE)=0),\"\",VLOOKUP(B10,'derde wedstrijd'!B:C,2,FALSE))","v":0},{"$f":"IF(ISERROR(VLOOKUP(B10,'vierde wedstrijd'!B:E,3,FALSE)=0),\"\",VLOOKUP(B10,'vierde wedstrijd'!B:E,3,FALSE))","v":0},{"$f":"IF(ISERROR(VLOOKUP(B10,'vierde wedstrijd'!B:C,2,FALSE)=0),\"\",VLOOKUP(B10,'vierde wedstrijd'!B:C,2,FALSE))","v":0},13,4895]
[9,"B. Bots",{"$f":"IF(ISERROR(VLOOKUP(B11,'eerste wedstrijd'!B:E,3,FALSE)=0),\"\",VLOOKUP(B11,'eerste wedstrijd'!B:E,3,FALSE))","v":7},{"$f":"IF(ISERROR(VLOOKUP(B11,'eerste wedstrijd'!B:E,2,FALSE)=0),\"\",VLOOKUP(B11,'eerste wedstrijd'!B:E,2,FALSE))","v":135},{"$f":"IF(ISERROR(VLOOKUP(B11,'tweede wedstrijd'!B:D,3,FALSE)=0),\"\",VLOOKUP(B11,'tweede wedstrijd'!B:D,3,FALSE))","v":7},{"$f":"IF(ISERROR(VLOOKUP(B11,'tweede wedstrijd'!B:C,2,FALSE)=0),\"\",VLOOKUP(B11,'tweede wedstrijd'!B:C,2,FALSE))","v":3165},{"$f":"IF(ISERROR(VLOOKUP(B11,'derde wedstrijd'!B:E,3,FALSE)=0),\"\",VLOOKUP(B11,'derde wedstrijd'!B:E,3,FALSE))","v":0},{"$f":"IF(ISERROR(VLOOKUP(B11,'derde wedstrijd'!B:C,2,FALSE)=0),\"\",VLOOKUP(B11,'derde wedstrijd'!B:C,2,FALSE))","v":0},{"$f":"IF(ISERROR(VLOOKUP(B11,'vierde wedstrijd'!B:E,3,FALSE)=0),\"\",VLOOKUP(B11,'vierde wedstrijd'!B:E,3,FALSE))","v":0},{"$f":"IF(ISERROR(VLOOKUP(B11,'vierde wedstrijd'!B:C,2,FALSE)=0),\"\",VLOOKUP(B11,'vierde wedstrijd'!B:C,2,FALSE))","v":0},14,3300]
[10,"H. v d Akker",{"$f":"IF(ISERROR(VLOOKUP(B12,'eerste wedstrijd'!B:E,3,FALSE)=0),\"\",VLOOKUP(B12,'eerste wedstrijd'!B:E,3,FALSE))","v":7},{"$f":"IF(ISERROR(VLOOKUP(B12,'eerste wedstrijd'!B:E,2,FALSE)=0),\"\",VLOOKUP(B12,'eerste wedstrijd'!B:E,2,FALSE))","v":135},{"$f":"IF(ISERROR(VLOOKUP(B12,'tweede wedstrijd'!B:D,3,FALSE)=0),\"\",VLOOKUP(B12,'tweede wedstrijd'!B:D,3,FALSE))","v":1},{"$f":"IF(ISERROR(VLOOKUP(B12,'tweede wedstrijd'!B:C,2,FALSE)=0),\"\",VLOOKUP(B12,'tweede wedstrijd'!B:C,2,FALSE))","v":21210},{"$f":"IF(ISERROR(VLOOKUP(B12,'derde wedstrijd'!B:E,3,FALSE)=0),\"\",VLOOKUP(B12,'derde wedstrijd'!B:E,3,FALSE))","v":0},{"$f":"IF(ISERROR(VLOOKUP(B12,'derde wedstrijd'!B:C,2,FALSE)=0),\"\",VLOOKUP(B12,'derde wedstrijd'!B:C,2,FALSE))","v":0},{"$f":"IF(ISERROR(VLOOKUP(B12,'vierde wedstrijd'!B:E,3,FALSE)=0),\"\",VLOOKUP(B12,'vierde wedstrijd'!B:E,3,FALSE))","v":0},{"$f":"IF(ISERROR(VLOOKUP(B12,'vierde wedstrijd'!B:C,2,FALSE)=0),\"\",VLOOKUP(B12,'vierde wedstrijd'!B:C,2,FALSE))","v":0},8,21345]
[11,"H. Verbaarschot",{"$f":"IF(ISERROR(VLOOKUP(B13,'eerste wedstrijd'!B:E,3,FALSE)=0),\"\",VLOOKUP(B13,'eerste wedstrijd'!B:E,3,FALSE))","v":8},{"$f":"IF(ISERROR(VLOOKUP(B13,'eerste wedstrijd'!B:E,2,FALSE)=0),\"\",VLOOKUP(B13,'eerste wedstrijd'!B:E,2,FALSE))","v":115},{"$f":"IF(ISERROR(VLOOKUP(B13,'tweede wedstrijd'!B:D,3,FALSE)=0),\"\",VLOOKUP(B13,'tweede wedstrijd'!B:D,3,FALSE))","v":7.5},{"$f":"IF(ISERROR(VLOOKUP(B13,'tweede wedstrijd'!B:C,2,FALSE)=0),\"\",VLOOKUP(B13,'tweede wedstrijd'!B:C,2,FALSE))","v":2835},{"$f":"IF(ISERROR(VLOOKUP(B13,'derde wedstrijd'!B:E,3,FALSE)=0),\"\",VLOOKUP(B13,'derde wedstrijd'!B:E,3,FALSE))","v":0},{"$f":"IF(ISERROR(VLOOKUP(B13,'derde wedstrijd'!B:C,2,FALSE)=0),\"\",VLOOKUP(B13,'derde wedstrijd'!B:C,2,FALSE))","v":0},{"$f":"IF(ISERROR(VLOOKUP(B13,'vierde wedstrijd'!B:E,3,FALSE)=0),\"\",VLOOKUP(B13,'vierde wedstrijd'!B:E,3,FALSE))","v":0},{"$f":"IF(ISERROR(VLOOKUP(B13,'vierde wedstrijd'!B:C,2,FALSE)=0),\"\",VLOOKUP(B13,'vierde wedstrijd'!B:C,2,FALSE))","v":0},15.5,2950]
[12,null,{"$f":"IF(ISERROR(VLOOKUP(B14,'eerste wedstrijd'!B:E,3,FALSE)=0),\"\",VLOOKUP(B14,'eerste wedstrijd'!B:E,3,FALSE))","v":""},{"$f":"IF(ISERROR(VLOOKUP(B14,'eerste wedstrijd'!B:E,2,FALSE)=0),\"\",VLOOKUP(B14,'eerste wedstrijd'!B:E,2,FALSE))","v":""},{"$f":"IF(ISERROR(VLOOKUP(B14,'tweede wedstrijd'!B:D,3,FALSE)=0),\"\",VLOOKUP(B14,'tweede wedstrijd'!B:D,3,FALSE))","v":""},{"$f":"IF(ISERROR(VLOOKUP(B14,'tweede wedstrijd'!B:C,2,FALSE)=0),\"\",VLOOKUP(B14,'tweede wedstrijd'!B:C,2,FALSE))","v":""},{"$f":"IF(ISERROR(VLOOKUP(B14,'derde wedstrijd'!B:E,3,FALSE)=0),\"\",VLOOKUP(B14,'derde wedstrijd'!B:E,3,FALSE))","v":""},{"$f":"IF(ISERROR(VLOOKUP(B14,'derde wedstrijd'!B:C,2,FALSE)=0),\"\",VLOOKUP(B14,'derde wedstrijd'!B:C,2,FALSE))","v":""},{"$f":"IF(ISERROR(VLOOKUP(B14,'vierde wedstrijd'!B:E,3,FALSE)=0),\"\",VLOOKUP(B14,'vierde wedstrijd'!B:E,3,FALSE))","v":""},{"$f":"IF(ISERROR(VLOOKUP(B14,'vierde wedstrijd'!B:C,2,FALSE)=0),\"\",VLOOKUP(B14,'vierde wedstrijd'!B:C,2,FALSE))","v":""},0,0]
[13,null,{"$f":"IF(ISERROR(VLOOKUP(B15,'eerste wedstrijd'!B:E,3,FALSE)=0),\"\",VLOOKUP(B15,'eerste wedstrijd'!B:E,3,FALSE))","v":""},{"$f":"IF(ISERROR(VLOOKUP(B15,'eerste wedstrijd'!B:E,2,FALSE)=0),\"\",VLOOKUP(B15,'eerste wedstrijd'!B:E,2,FALSE))","v":""},{"$f":"IF(ISERROR(VLOOKUP(B15,'tweede wedstrijd'!B:D,3,FALSE)=0),\"\",VLOOKUP(B15,'tweede wedstrijd'!B:D,3,FALSE))","v":""},{"$f":"IF(ISERROR(VLOOKUP(B15,'tweede wedstrijd'!B:C,2,FALSE)=0),\"\",VLOOKUP(B15,'tweede wedstrijd'!B:C,2,FALSE))","v":""},{"$f":"IF(ISERROR(VLOOKUP(B15,'derde wedstrijd'!B:E,3,FALSE)=0),\"\",VLOOKUP(B15,'derde wedstrijd'!B:E,3,FALSE))","v":""},{"$f":"IF(ISERROR(VLOOKUP(B15,'derde wedstrijd'!B:C,2,FALSE)=0),\"\",VLOOKUP(B15,'derde wedstrijd'!B:C,2,FALSE))","v":""},{"$f":"IF(ISERROR(VLOOKUP(B15,'vierde wedstrijd'!B:E,3,FALSE)=0),\"\",VLOOKUP(B15,'vierde wedstrijd'!B:E,3,FALSE))","v":""},{"$f":"IF(ISERROR(VLOOKUP(B15,'vierde wedstrijd'!B:C,2,FALSE)=0),\"\",VLOOKUP(B15,'vierde wedstrijd'!B:C,2,FALSE))","v":""},0,0]
[14]
[15]
[16]

{"sheet":"eerste wedstrijd","index":3,"n_rows":13,"n_cols":7,"rows_kept":13,"cut":false,"hidden":false,"merged":[]}
[null,"NAAM.","Gr","Punten","Plaats"]
[1,"P. Lintermans",{"$f":"F2-G2","v":10600},1,14,12050,1450]
[2,"M. Hoskins",{"$f":"F3-G3","v":3720},2,13,5170,1450]
[3,"H. v Helmond",2965,3,15,4415,1450]
[4,"T. Mastbroek",2125,4,19,3575,1450]
[5,"M. v Lierop",1395,5,17,2845,1450]
[6,"J. v Haaren",1280,5.5,20,2730,1450]
[7,"W. Seijkens",1205,6,24,2655,1450]
[8,"T. Hoefnagels",815,6.5,18,2265,1450]
[9,"B. Bots",135,7,21,1585,1450]
[10,"H. v d Akker",135,7,22,1585,1450]
[11,"H. Verbaarschot",115,8,23,1565,1450]
[12,null,null,null,null,null,1450]

{"sheet":"tweede wedstrijd","index":4,"n_rows":13,"n_cols":7,"rows_kept":13,"cut":false,"hidden":false,"merged":[]}
[null,"NAAM.","Gr","Punten","Plaats"]
[1,"H. v d Akker",21210,1,38,null,1450]
[2,"M. Hoskins",{"$f":"F3-G3","v":15000},2,29,16450,1450]
[3,"T. Mastbroek",13090,3,40,14540,1450]
[4,"P. Lintermans",12780,4,39,14230,1450]
[5,"J. v Haaren",7915,5,37,9365,1450]
[6,"H. v Helmond",7225,5.5,24,8675,1450]
[7,"M. v Lierop",4710,6,30,6160,1450]
[8,"T. Hoefnagels",4080,6.5,31,5530,1450]
[9,"B. Bots",3165,7,35,4615,1450]
[10,"H. Verbaarschot",2835,7.5,23,4285,1450]
[11,"W. Seijkens",0,9,32,null,1450]
[12,null,null,null,null,null,1450]

{"sheet":"derde wedstrijd","index":5,"n_rows":13,"n_cols":5,"rows_kept":13,"cut":false,"hidden":false,"merged":[]}
[null,"NAAM.","Gr","Punten","Plaats"]
[1,"P. Lintermans"]
[2,"M. Hoskins"]
[3,"H. v Helmond"]
[4,"T. Mastbroek"]
[5,"M. v Lierop"]
[6,"J. v Haaren"]
[7,"W. Seijkens"]
[8,"T. Hoefnagels"]
[9,"B. Bots"]
[10,"H. v d Akker"]
[11,"H. Verbaarschot"]
[12,"J. Verwei"]

{"sheet":"vierde wedstrijd","index":6,"n_rows":13,"n_cols":5,"rows_kept":13,"cut":false,"hidden":false,"merged":[]}
[null,"NAAM.","Gr","Punten","Plaats"]
[1,"P. Lintermans"]
[2,"M. Hoskins"]
[3,"H. v Helmond"]
[4,"T. Mastbroek"]
[5,"M. v Lierop"]
[6,"J. v Haaren"]
[7,"W. Seijkens"]
[8,"T. Hoefnagels"]
[9,"B. Bots"]
[10,"H. v d Akker"]
[11,"H. Verbaarschot"]
[12,"J. Verwei"]